{"text_format":"2","workbook":"xlsx","n_sheets":1,"sheets":["with checkpoints"],"not_rendered":{"charts":0,"images":1,"macros":0,"external_links":0,"defined_names":1,"comments":1,"pivot_tables":0},"unopened":[],"bounds":{"document_bytes":16777216,"sheet_cells":100000,"run_cost":"one","rows_first":2000,"rows_last":500,"rows_between":2000,"halvings":0,"cell_chars":16384,"cell_head_chars":4096},"cells_cut":0,"cells_raw":0,"read":"whole","date_system":"1900"}

{"sheet":"with checkpoints","index":0,"n_rows":33,"n_cols":9,"rows_kept":33,"cut":false,"hidden":false,"merged":[[29,5,29,8],[29,1,32,4],[32,5,32,8],[26,1,26,4],[26,5,26,8],[9,1,12,5],[9,7,11,8],[13,7,13,8],[13,4,13,5],[13,1,13,2]]}
{"$rows_empty":8}
[null,"How does this work?",{"$nulls":5},"Enter Delivery Date Here:"]
[null,"First choose your delivery date and fill it in the box on the right. When creating your timeline for the fundraiser we recommend working backwards from your delivery date. Keep in mind that the delivery date options are specific for your region. Fill in your delivery date, and the rest will auto fill."]
[]
[]
[]
[null,"3 Week Option (Most Popular)",null,null,"2 Week Option",null,null,"1 Week Option (Time Sensitive)"]
[]
[null,"Important Dates","Dates",null,"Important Dates","Dates",null,"Important Dates","Dates"]
[null,"Campaign Launch",{"$f":"IF(H10>0,C21-21,\"\")","v":""},null,"Campaign Launch",{"$f":"IF(H10>0,F20-14,\"\")","v":""},null,"Campaign Launch",{"$f":"IF(H10>0,I19-7,\"\")","v":""}]
[null,"Check Point #1",{"$f":"IF(H10>0,C17+4,\"\")","v":""},null,"Check Point #1",{"$f":"IF(H10>0,F17+4,\"\")","v":""},null,"Check Point #1",{"$f":"IF(H10>0,I17+4,\"\")","v":""}]
[null,"Check Point #2",{"$f":"IF(H10>0,C18+10,\"\")","v":""},null,"Check Point #2",{"$f":"IF(H10>0,F18+7,\"\")","v":""},null,"Order Form Collection",{"$f":"IF(H10>0,I20-2,\"\")","v":""}]
[null,"Check Point #3",{"$f":"IF(H10>0,C19+3,\"\")","v":""},null,"Order Form Collection",{"$f":"IF(H10>0,F21-2,\"\")","v":""},null,"Submit Final Order",{"$f":"IF(H10>0,I21-10,\"\")","v":""}]
[null,"Order Form Collection",{"$f":"IF(H10>0,C22-2,\"\")","v":""},null,"Submit Final Order",{"$f":"IF(H10>0,F22-10,\"\")","v":""},null,"Delivery",{"$f":"IF(H10>0,H10,\"\")","v":""}]
[null,"Submit Final Order",{"$f":"IF(H10>0,C23-10,\"\")","v":""},null,"Delivery",{"$f":"IF(H10>0,H10,\"\")","v":""},null,"Customer Pick-up",{"$f":"IF(H10>0,I21+1,\"\")","v":""}]
[null,"Delivery",{"$f":"IF(H10>0,H10,\"\")","v":""},null,"Customer Pick-up",{"$f":"IF(H10>0,F22+1,\"\")","v":""}]
[null,"Customer Pick-up",{"$f":"IF(H10>0,C23+1,\"\")","v":""}]
[]
[null,"Campaign Launch:",null,null,null,"Order Form Collection Date:"]
[null,"When do I start my fundraiser? The question that gets asked a lot. In this sheet, it will be auto filled based on your chosen delivery date according to the length that you want to run your fundraiser. If you want to run the fundraiser longer by all means, go for it.",null,null,null,"Collect all order forms from your group a few days prior  to your final order due date. Give yourself enough time to collect the orders and money, tally up numbers and add-on any last minute stragglers before submitting your final order"]
[]
[null,"Check Points:",null,null,null,"Final Order Due Date:"]
[null,"It is important to check in with your group/fundraisers once in a while. These check-in’s give you an opportunity to gain feedback and also to remind and encourage your team. You may notice an opportunity for improvement, or discover a need from one of your sellers and then work together to develop a new strategy. Options for check-in's are endless. Examples are:\n      - Announcement over the PA System\n      - Facebook Post\n      - School/group Website and Newsletter \n      - Send out an email to sellers (or there parents)\n\nThe dates are automatically calculated based on the length of your fundraiser you choose.",null,null,null,"Your final order is due 10 days prior to your scheduled delivery date. The order will need to be submitted to Growing Smiles Fundraising online via your team website (which is set up when you register)."]
[]
[{"$nulls":5},"Customer Pick-Up Date:"]
[{"$nulls":5},"We advise that you have parent pick-up either in the evening on your delivery day or even the following day. This helps to avoid extra confusion and headaches if the delivery is running late, or you need extra time to organize the plants prior to customer pick-up.\n\n"]